[Event "December 5 Late 2023"]
[Site "https://www.chess.com"]
[Date "2023.12.05"]
[Round "1"]
[White "Argandona Riveiro, Inigo"]
[Black "Zhigalko, Sergei"]
[Result "0-1"]
[Board "40"]
[TimeControl "180+1"]
[WhiteFideId "2212072"]
[BlackFideId "13502956"]
[WhiteElo "2450"]
[BlackElo "2910"]
[WhiteTeam "ESP"]
[BlackTeam "BLR"]
[WhiteClock "0:00:00"]
[BlackClock "0:00:03"]

1. Nf3 {[%clk 0:03:00]}  d5 {[%clk 0:02:59]} 2. c4 {[%clk 0:03:01]}  d4 {[%clk 0:02:59]} 3. e3 {[%clk 0:03:02]}  Nc6 {[%clk 0:02:58]} 4. b4 {[%clk 0:03:02]}  dxe3 {[%clk 0:02:58]} 5. fxe3 {[%clk 0:03:03]}  Nxb4 {[%clk 0:02:56]} 6. d4 {[%clk 0:03:03]}  e5 {[%clk 0:02:54]} 7. Nxe5 {[%clk 0:02:58]}  Qh4+ {[%clk 0:02:49]} 8. g3 {[%clk 0:02:22]}  Qe4 {[%clk 0:02:44]} 9. Na3 {[%clk 0:02:16]}  Qxh1 {[%clk 0:02:36]} 10. Nb5 {[%clk 0:02:16]}  Bd6 {[%clk 0:01:56]} 11. Qa4 {[%clk 0:02:03]}  Nc6 {[%clk 0:01:44]} 12. Ba3 {[%clk 0:01:40]}  Nge7 {[%clk 0:00:46]} 13. Bxd6 {[%clk 0:01:35]}  cxd6 {[%clk 0:00:46]} 14. Nxd6+ {[%clk 0:01:36]}  Kf8 {[%clk 0:00:44]} 15. Nexf7 {[%clk 0:01:24]}  Qxh2 {[%clk 0:00:33]} 16. O-O-O {[%clk 0:01:18]}  Bg4 {[%clk 0:00:32]} 17. Nxh8 {[%clk 0:00:53]}  Bxd1 {[%clk 0:00:30]} 18. Qxd1 {[%clk 0:00:54]}  Kg8 {[%clk 0:00:16]} 19. Nhf7 {[%clk 0:00:51]}  Qxa2 {[%clk 0:00:11]} 20. Qf3 {[%clk 0:00:45]}  Rf8 {[%clk 0:00:08]} 21. c5 {[%clk 0:00:42]}  Nb4 {[%clk 0:00:06]} 22. Qe2 {[%clk 0:00:10]}  Qxe2 {[%clk 0:00:03]} 23. Bxe2 {[%clk 0:00:11]}  Rxf7 {[%clk 0:00:03]} 24. Bc4 {[%clk 0:00:10]}  Nbd5 {[%clk 0:00:03]} 25. Nxf7 {[%clk 0:00:09]}  Kxf7 {[%clk 0:00:03]} 26. e4 {[%clk 0:00:09]}  Ke6 {[%clk 0:00:04]} 27. exd5+ {[%clk 0:00:08]}  Nxd5 {[%clk 0:00:05]} 28. Kd2 {[%clk 0:00:07]}  b5 {[%clk 0:00:05]} 29. cxb6 {[%clk 0:00:06]}  axb6 {[%clk 0:00:05]} 30. Kd3 {[%clk 0:00:05]}  Kd6 {[%clk 0:00:05]} 31. Ke4 {[%clk 0:00:05]}  Ne7 {[%clk 0:00:05]} 32. Bb3 {[%clk 0:00:04]}  g6 {[%clk 0:00:04]} 33. Kf4 {[%clk 0:00:03]}  h6 {[%clk 0:00:04]} 34. Bf7 {[%clk 0:00:02]}  b5 {[%clk 0:00:04]} 35. g4 {[%clk 0:00:02]}  b4 {[%clk 0:00:04]} 36. Ke4 {[%clk 0:00:00]}  g5 {[%clk 0:00:03]} 0-1

[Event "December 5 Late 2023"]
[Site "https://www.chess.com"]
[Date "2023.12.05"]
[Round "1"]
[White "Melkumyan, Hrant"]
[Black "Kraiouchkine, Nikita"]
[Result "1-0"]
[Board "41"]
[TimeControl "180+1"]
[WhiteFideId "13302485"]
[BlackFideId "2607140"]
[WhiteElo "2906"]
[BlackElo "2449"]
[WhiteTeam "ARM"]
[BlackTeam "CAN"]
[WhiteClock "0:00:35"]
[BlackClock "0:00:02"]

1. e4 {[%clk 0:02:57]}  e5 {[%clk 0:02:59]} 2. Nf3 {[%clk 0:02:54]}  Nc6 {[%clk 0:02:58]} 3. Bb5 {[%clk 0:02:53]}  f5 {[%clk 0:02:58]} 4. Nc3 {[%clk 0:02:48]}  fxe4 {[%clk 0:02:55]} 5. Nxe4 {[%clk 0:02:47]}  d5 {[%clk 0:02:54]} 6. Ng3 {[%clk 0:02:45]}  Bg4 {[%clk 0:02:53]} 7. O-O {[%clk 0:02:33]}  Nf6 {[%clk 0:02:20]} 8. Qe1 {[%clk 0:02:25]}  Bxf3 {[%clk 0:01:45]} 9. Bxc6+ {[%clk 0:02:14]}  bxc6 {[%clk 0:01:43]} 10. Qxe5+ {[%clk 0:02:14]}  Be7 {[%clk 0:01:43]} 11. gxf3 {[%clk 0:02:12]}  O-O {[%clk 0:01:43]} 12. d4 {[%clk 0:02:03]}  Qd7 {[%clk 0:01:35]} 13. Qf5 {[%clk 0:01:48]}  Qxf5 {[%clk 0:00:58]} 14. Nxf5 {[%clk 0:01:46]}  Rae8 {[%clk 0:00:59]} 15. Bg5 {[%clk 0:01:37]}  g6 {[%clk 0:00:49]} 16. Nxe7+ {[%clk 0:01:25]}  Rxe7 {[%clk 0:00:48]} 17. Rfe1 {[%clk 0:01:26]}  Ref7 {[%clk 0:00:41]} 18. Re6 {[%clk 0:01:20]}  Nh5 {[%clk 0:00:41]} 19. Bh6 {[%clk 0:01:16]}  Rb8 {[%clk 0:00:39]} 20. Rae1 {[%clk 0:01:12]}  Rf5 {[%clk 0:00:19]} 21. Rxc6 {[%clk 0:01:05]}  Rxf3 {[%clk 0:00:13]} 22. Rxc7 {[%clk 0:01:04]}  Rf7 {[%clk 0:00:13]} 23. Rc5 {[%clk 0:00:58]}  Rd7 {[%clk 0:00:11]} 24. b3 {[%clk 0:00:55]}  Nf6 {[%clk 0:00:11]} 25. f3 {[%clk 0:00:54]}  Kf7 {[%clk 0:00:11]} 26. Bg5 {[%clk 0:00:51]}  Ne8 {[%clk 0:00:10]} 27. Rc6 {[%clk 0:00:47]}  Nc7 {[%clk 0:00:08]} 28. c4 {[%clk 0:00:41]}  dxc4 {[%clk 0:00:06]} 29. Bf4 {[%clk 0:00:40]}  Rb7 {[%clk 0:00:06]} 30. bxc4 {[%clk 0:00:38]}  Ne8 {[%clk 0:00:02]} 31. Be5 {[%clk 0:00:38]}  Rb2 {[%clk 0:00:02]} 32. Ra6 {[%clk 0:00:37]}  Rc2 {[%clk 0:00:02]} 33. c5 {[%clk 0:00:37]}  Ng7 {[%clk 0:00:02]} 34. c6 {[%clk 0:00:35]}  Rd5 {[%clk 0:00:02]} 1-0

[Event "December 5 Late 2023"]
[Site "https://www.chess.com"]
[Date "2023.12.05"]
[Round "1"]
[White "Demchenko, Anton"]
[Black "Rama, Tejas"]
[Result "1-0"]
[Board "43"]
[TimeControl "180+1"]
[WhiteFideId "4160258"]
[BlackFideId "30907381"]
[WhiteElo "2889"]
[BlackElo "2446"]
[WhiteTeam "SLO"]
[BlackTeam "USA"]
[WhiteClock "0:00:26"]
[BlackClock "0:00:33"]

1. e4 {[%clk 0:03:00]}  e5 {[%clk 0:02:59]} 2. Nf3 {[%clk 0:03:00]}  Nc6 {[%clk 0:03:00]} 3. Bc4 {[%clk 0:03:01]}  Bc5 {[%clk 0:02:59]} 4. d3 {[%clk 0:03:01]}  Nf6 {[%clk 0:02:59]} 5. Bg5 {[%clk 0:03:02]}  h6 {[%clk 0:02:57]} 6. Bh4 {[%clk 0:03:02]}  Be7 {[%clk 0:02:57]} 7. Bg3 {[%clk 0:03:02]}  d6 {[%clk 0:02:56]} 8. a4 {[%clk 0:03:03]}  O-O {[%clk 0:02:55]} 9. h3 {[%clk 0:03:02]}  Be6 {[%clk 0:02:48]} 10. Bxe6 {[%clk 0:03:02]}  fxe6 {[%clk 0:02:49]} 11. c3 {[%clk 0:03:03]}  Qc8 {[%clk 0:02:44]} 12. Nbd2 {[%clk 0:03:01]}  Nh5 {[%clk 0:02:41]} 13. Nxe5 {[%clk 0:02:49]}  Nxg3 {[%clk 0:02:33]} 14. Nxc6 {[%clk 0:02:49]}  Bh4 {[%clk 0:02:23]} 15. Ne7+ {[%clk 0:02:44]}  Bxe7 {[%clk 0:02:23]} 16. fxg3 {[%clk 0:02:44]}  Qe8 {[%clk 0:02:06]} 17. Qg4 {[%clk 0:02:37]}  Bg5 {[%clk 0:01:57]} 18. Nf3 {[%clk 0:02:22]}  Be3 {[%clk 0:01:57]} 19. h4 {[%clk 0:02:18]}  h5 {[%clk 0:01:50]} 20. Qh3 {[%clk 0:02:19]}  Qg6 {[%clk 0:01:45]} 21. Ke2 {[%clk 0:02:15]}  Bh6 {[%clk 0:01:36]} 22. Raf1 {[%clk 0:01:53]}  Rf6 {[%clk 0:01:31]} 23. Nd4 {[%clk 0:01:49]}  Raf8 {[%clk 0:01:28]} 24. Rxf6 {[%clk 0:01:49]}  Rxf6 {[%clk 0:01:29]} 25. Rf1 {[%clk 0:01:49]}  Rxf1 {[%clk 0:01:14]} 26. Kxf1 {[%clk 0:01:50]}  Kf7 {[%clk 0:01:14]} 27. Ke2 {[%clk 0:01:45]}  Bc1 {[%clk 0:01:05]} 28. Nf3 {[%clk 0:01:18]}  Qh6 {[%clk 0:00:51]} 29. Kf1 {[%clk 0:00:55]}  Bxb2 {[%clk 0:00:44]} 30. Ng5+ {[%clk 0:00:55]}  Ke7 {[%clk 0:00:45]} 31. c4 {[%clk 0:00:28]}  Bf6 {[%clk 0:00:33]} 32. Qxe6+ {[%clk 0:00:26]} 1-0

[Event "December 5 Late 2023"]
[Site "https://www.chess.com"]
[Date "2023.12.05"]
[Round "1"]
[White "Filipovic, Slobodan J"]
[Black "Ashraf, Artin"]
[Result "0-1"]
[Board "44"]
[TimeControl "180+1"]
[WhiteFideId "939633"]
[BlackFideId "22514805"]
[WhiteElo "2445"]
[BlackElo "2886"]
[WhiteTeam "SRB"]
[BlackTeam "IRI"]
[WhiteClock "0:00:16"]
[BlackClock "0:00:08"]

1. c4 {[%clk 0:03:00]}  g6 {[%clk 0:02:55]} 2. d4 {[%clk 0:02:59]}  Nf6 {[%clk 0:02:54]} 3. Nc3 {[%clk 0:02:58]}  d5 {[%clk 0:02:54]} 4. cxd5 {[%clk 0:02:58]}  Nxd5 {[%clk 0:02:54]} 5. e4 {[%clk 0:02:58]}  Nxc3 {[%clk 0:02:54]} 6. bxc3 {[%clk 0:02:59]}  Bg7 {[%clk 0:02:54]} 7. Nf3 {[%clk 0:03:00]}  c5 {[%clk 0:02:53]} 8. Bb5+ {[%clk 0:02:59]}  Nc6 {[%clk 0:02:49]} 9. O-O {[%clk 0:02:55]}  O-O {[%clk 0:02:45]} 10. Bxc6 {[%clk 0:02:46]}  bxc6 {[%clk 0:02:45]} 11. h3 {[%clk 0:02:38]}  Qa5 {[%clk 0:02:03]} 12. Qc2 {[%clk 0:02:35]}  cxd4 {[%clk 0:01:59]} 13. cxd4 {[%clk 0:02:36]}  c5 {[%clk 0:01:59]} 14. Be3 {[%clk 0:02:34]}  cxd4 {[%clk 0:01:58]} 15. Bxd4 {[%clk 0:02:26]}  e5 {[%clk 0:01:52]} 16. Bc3 {[%clk 0:02:10]}  Qc5 {[%clk 0:01:51]} 17. Qb2 {[%clk 0:02:10]}  Re8 {[%clk 0:01:49]} 18. Qb4 {[%clk 0:02:00]}  Qxb4 {[%clk 0:01:43]} 19. Bxb4 {[%clk 0:02:01]}  Bb7 {[%clk 0:01:43]} 20. Rfe1 {[%clk 0:02:00]}  Rac8 {[%clk 0:01:42]} 21. Nd2 {[%clk 0:01:54]}  Rc2 {[%clk 0:01:33]} 22. a3 {[%clk 0:01:36]}  Ra8 {[%clk 0:01:21]} 23. Rac1 {[%clk 0:01:33]}  Rac8 {[%clk 0:01:20]} 24. Rxc2 {[%clk 0:01:26]}  Rxc2 {[%clk 0:01:21]} 25. f3 {[%clk 0:01:26]}  Bc6 {[%clk 0:01:15]} 26. Nb3 {[%clk 0:01:20]}  Bf8 {[%clk 0:01:15]} 27. Rc1 {[%clk 0:01:14]}  Rxc1+ {[%clk 0:01:10]} 28. Nxc1 {[%clk 0:01:15]}  Bh6 {[%clk 0:01:08]} 29. Nd3 {[%clk 0:01:12]}  f6 {[%clk 0:01:07]} 30. Kf2 {[%clk 0:01:08]}  Bb5 {[%clk 0:01:07]} 31. Nc5 {[%clk 0:01:06]}  Kf7 {[%clk 0:01:06]} 32. Nb3 {[%clk 0:01:03]}  Bc4 {[%clk 0:01:05]} 33. Bd2 {[%clk 0:00:59]}  Bf8 {[%clk 0:01:04]} 34. Na5 {[%clk 0:00:53]}  Bb5 {[%clk 0:00:51]} 35. Bb4 {[%clk 0:00:52]}  Bh6 {[%clk 0:00:49]} 36. Nb3 {[%clk 0:00:49]}  Ke8 {[%clk 0:00:49]} 37. Bc5 {[%clk 0:00:48]}  a6 {[%clk 0:00:47]} 38. Be3 {[%clk 0:00:48]}  Bg7 {[%clk 0:00:46]} 39. Nc5 {[%clk 0:00:45]}  Bf8 {[%clk 0:00:44]} 40. g4 {[%clk 0:00:42]}  g5 {[%clk 0:00:34]} 41. Kg3 {[%clk 0:00:41]}  Be2 {[%clk 0:00:31]} 42. Kf2 {[%clk 0:00:35]}  Bc4 {[%clk 0:00:30]} 43. Kg3 {[%clk 0:00:35]}  Kd8 {[%clk 0:00:27]} 44. h4 {[%clk 0:00:35]}  h6 {[%clk 0:00:27]} 45. hxg5 {[%clk 0:00:35]}  hxg5 {[%clk 0:00:27]} 46. Kf2 {[%clk 0:00:34]}  Kc7 {[%clk 0:00:27]} 47. Na4 {[%clk 0:00:17]}  Bxa3 {[%clk 0:00:23]} 48. Nc3 {[%clk 0:00:15]}  Kc6 {[%clk 0:00:20]} 49. Ke1 {[%clk 0:00:14]}  Bb4 {[%clk 0:00:17]} 50. Kd2 {[%clk 0:00:14]}  a5 {[%clk 0:00:17]} 51. Kc2 {[%clk 0:00:14]}  Bc5 {[%clk 0:00:18]} 52. Bd2 {[%clk 0:00:13]}  Bd4 {[%clk 0:00:17]} 53. Na4 {[%clk 0:00:12]}  Be2 {[%clk 0:00:15]} 54. Bxa5 {[%clk 0:00:10]}  Bxf3 {[%clk 0:00:14]} 55. Kd3 {[%clk 0:00:10]}  Kb5 {[%clk 0:00:13]} 56. Bd8 {[%clk 0:00:08]}  Kxa4 {[%clk 0:00:12]} 57. Bxf6 {[%clk 0:00:09]}  Bxg4 {[%clk 0:00:12]} 58. Bxg5 {[%clk 0:00:09]}  Bd7 {[%clk 0:00:09]} 59. Be7 {[%clk 0:00:09]}  Bb5+ {[%clk 0:00:09]} 60. Kd2 {[%clk 0:00:09]}  Kb3 {[%clk 0:00:09]} 61. Bd6 {[%clk 0:00:09]}  Bf1 {[%clk 0:00:09]} 62. Bb8 {[%clk 0:00:09]}  Kc4 {[%clk 0:00:08]} 63. Bd6 {[%clk 0:00:09]}  Kb5 {[%clk 0:00:08]} 64. Bb8 {[%clk 0:00:08]}  Kc6 {[%clk 0:00:09]} 65. Ke1 {[%clk 0:00:06]}  Bd3 {[%clk 0:00:08]} 66. Kd2 {[%clk 0:00:07]}  Bxe4 {[%clk 0:00:08]} 67. Bxe5 {[%clk 0:00:07]}  Bxe5 {[%clk 0:00:08]} 68. Ke2 {[%clk 0:00:08]}  Kd5 {[%clk 0:00:07]} 69. Kd2 {[%clk 0:00:09]}  Kd4 {[%clk 0:00:07]} 70. Ke2 {[%clk 0:00:09]}  Bg3 {[%clk 0:00:07]} 71. Kd2 {[%clk 0:00:10]}  Bf3 {[%clk 0:00:08]} 72. Kc2 {[%clk 0:00:10]}  Kc4 {[%clk 0:00:08]} 73. Kd2 {[%clk 0:00:11]}  Bf2 {[%clk 0:00:08]} 74. Kc2 {[%clk 0:00:12]}  Be3 {[%clk 0:00:08]} 75. Kb2 {[%clk 0:00:12]}  Kb4 {[%clk 0:00:08]} 76. Kc2 {[%clk 0:00:13]}  Be2 {[%clk 0:00:07]} 77. Kb2 {[%clk 0:00:14]}  Bd3 {[%clk 0:00:07]} 78. Ka2 {[%clk 0:00:14]}  Kc3 {[%clk 0:00:07]} 79. Ka3 {[%clk 0:00:14]}  Bb5 {[%clk 0:00:06]} 80. Ka2 {[%clk 0:00:14]}  Kc2 {[%clk 0:00:06]} 81. Ka3 {[%clk 0:00:15]}  Bc5+ {[%clk 0:00:06]} 82. Ka2 {[%clk 0:00:16]}  Bc4+ {[%clk 0:00:07]} 83. Ka1 {[%clk 0:00:16]}  Bd4# {[%clk 0:00:08]} 0-1

[Event "December 5 Late 2023"]
[Site "https://www.chess.com"]
[Date "2023.12.05"]
[Round "1"]
[White "Popov, Konstantin"]
[Black "Wanyama, Harold"]
[Result "0-1"]
[Board "45"]
[TimeControl "180+1"]
[WhiteFideId "34137910"]
[BlackFideId "10000380"]
[WhiteElo "2885"]
[BlackElo "2445"]
[WhiteTeam "FID"]
[BlackTeam "UGA"]
[WhiteClock "0:01:25"]
[BlackClock "0:01:41"]

1. e4 {[%clk 0:03:00]}  c5 {[%clk 0:02:55]} 2. Nf3 {[%clk 0:03:01]}  e6 {[%clk 0:02:55]} 3. d4 {[%clk 0:03:01]}  cxd4 {[%clk 0:02:55]} 4. Nxd4 {[%clk 0:03:02]}  Nc6 {[%clk 0:02:55]} 5. Nc3 {[%clk 0:03:02]}  Qc7 {[%clk 0:02:54]} 6. Nxc6 {[%clk 0:03:02]}  bxc6 {[%clk 0:02:54]} 7. Bd3 {[%clk 0:03:03]}  Nf6 {[%clk 0:02:54]} 8. Qe2 {[%clk 0:03:00]}  d5 {[%clk 0:02:52]} 9. exd5 {[%clk 0:03:00]}  cxd5 {[%clk 0:02:52]} 10. Nb5 {[%clk 0:03:01]}  Qb8 {[%clk 0:02:52]} 11. g3 {[%clk 0:03:01]}  Nd7 {[%clk 0:02:42]} 12. Bf4 {[%clk 0:02:54]}  e5 {[%clk 0:02:42]} 13. O-O {[%clk 0:02:44]}  Be7 {[%clk 0:02:35]} 14. Rfe1 {[%clk 0:02:43]}  a6 {[%clk 0:02:30]} 15. Nc3 {[%clk 0:02:37]}  d4 {[%clk 0:02:21]} 16. Nd5 {[%clk 0:02:30]}  Bd6 {[%clk 0:02:18]} 17. Qg4 {[%clk 0:01:59]}  Kf8 {[%clk 0:02:06]} 18. Qh4 {[%clk 0:01:50]}  Bb7 {[%clk 0:01:57]} 19. Bc4 {[%clk 0:01:37]}  exf4 {[%clk 0:01:50]} 20. Re7 {[%clk 0:01:36]}  Bxd5 {[%clk 0:01:43]} 21. Rxd7 {[%clk 0:01:34]}  Bxc4 {[%clk 0:01:42]} 22. Rd1 {[%clk 0:01:25]}  Be6 {[%clk 0:01:41]} 0-1

[Event "December 5 Late 2023"]
[Site "https://www.chess.com"]
[Date "2023.12.05"]
[Round "1"]
[White "Bardyk, Artem"]
[Black "Davidson, Kevin"]
[Result "1/2-1/2"]
[Board "49"]
[TimeControl "180+1"]
[WhiteFideId "34349979"]
[BlackFideId "2056810"]
[WhiteElo "2867"]
[BlackElo "2434"]
[WhiteTeam "RUS"]
[BlackTeam "USA"]
[WhiteClock "0:00:02"]
[BlackClock "0:00:09"]

1. e4 {[%clk 0:03:00]}  c5 {[%clk 0:02:59]} 2. c3 {[%clk 0:03:00]}  d5 {[%clk 0:02:59]} 3. exd5 {[%clk 0:02:59]}  Qxd5 {[%clk 0:02:59]} 4. d4 {[%clk 0:02:59]}  Nc6 {[%clk 0:02:59]} 5. Nf3 {[%clk 0:02:58]}  Bg4 {[%clk 0:03:00]} 6. dxc5 {[%clk 0:02:56]}  Qxd1+ {[%clk 0:02:58]} 7. Kxd1 {[%clk 0:02:57]}  e6 {[%clk 0:02:57]} 8. b4 {[%clk 0:02:56]}  a5 {[%clk 0:02:52]} 9. b5 {[%clk 0:02:50]}  Ne5 {[%clk 0:02:46]} 10. Be2 {[%clk 0:02:47]}  Bxf3 {[%clk 0:02:41]} 11. gxf3 {[%clk 0:02:47]}  Bxc5 {[%clk 0:02:40]} 12. f4 {[%clk 0:02:46]}  O-O-O+ {[%clk 0:02:23]} 13. Kc2 {[%clk 0:02:45]}  Ng6 {[%clk 0:02:23]} 14. h4 {[%clk 0:02:32]}  Nf6 {[%clk 0:02:15]} 15. h5 {[%clk 0:02:31]}  Ne7 {[%clk 0:02:16]} 16. Nd2 {[%clk 0:02:20]}  Ned5 {[%clk 0:01:53]} 17. Nb3 {[%clk 0:02:10]}  Bb6 {[%clk 0:01:30]} 18. a4 {[%clk 0:02:01]}  Kb8 {[%clk 0:01:13]} 19. c4 {[%clk 0:01:51]}  Nb4+ {[%clk 0:01:10]} 20. Kb1 {[%clk 0:01:51]}  Bd4 {[%clk 0:00:51]} 21. Nxd4 {[%clk 0:01:34]}  Rxd4 {[%clk 0:00:51]} 22. h6 {[%clk 0:01:35]}  Ne4 {[%clk 0:00:18]} 23. Bb2 {[%clk 0:01:04]}  Nd2+ {[%clk 0:00:14]} 24. Kc1 {[%clk 0:01:00]}  Nb3+ {[%clk 0:00:13]} 25. Kb1 {[%clk 0:01:00]}  Nd2+ {[%clk 0:00:13]} 26. Kc1 {[%clk 0:00:02]}  Nb3+ {[%clk 0:00:12]} 27. Kb1 {[%clk 0:00:02]}  Nd2+ {[%clk 0:00:09]} 1/2-1/2

[Event "December 5 Late 2023"]
[Site "https://www.chess.com"]
[Date "2023.12.05"]
[Round "1"]
[White "Della Morte, German"]
[Black "Kazakouski, Valery"]
[Result "0-1"]
[Board "52"]
[TimeControl "180+1"]
[WhiteFideId "113522"]
[BlackFideId "13507443"]
[WhiteElo "2421"]
[BlackElo "2850"]
[WhiteTeam "ARG"]
[BlackTeam "LTU"]
[WhiteClock "0:02:41"]
[BlackClock "0:01:18"]

1. e4 {[%clk 0:03:00]}  c5 {[%clk 0:02:58]} 2. Nc3 {[%clk 0:03:00]}  Nc6 {[%clk 0:02:58]} 3. g3 {[%clk 0:03:00]}  g6 {[%clk 0:02:58]} 4. Bg2 {[%clk 0:03:01]}  Bg7 {[%clk 0:02:58]} 5. d3 {[%clk 0:03:02]}  d6 {[%clk 0:02:58]} 6. f4 {[%clk 0:03:02]}  Rb8 {[%clk 0:02:58]} 7. Nf3 {[%clk 0:03:03]}  b5 {[%clk 0:02:59]} 8. O-O {[%clk 0:03:03]}  e6 {[%clk 0:02:57]} 9. Rb1 {[%clk 0:03:02]}  Nge7 {[%clk 0:02:56]} 10. Be3 {[%clk 0:03:02]}  Nd4 {[%clk 0:02:56]} 11. Ne2 {[%clk 0:03:02]}  Nxf3+ {[%clk 0:02:39]} 12. Bxf3 {[%clk 0:03:00]}  O-O {[%clk 0:02:33]} 13. c3 {[%clk 0:02:59]}  Qc7 {[%clk 0:02:27]} 14. d4 {[%clk 0:02:59]}  cxd4 {[%clk 0:02:23]} 15. Bxd4 {[%clk 0:02:59]}  e5 {[%clk 0:02:18]} 16. Be3 {[%clk 0:02:59]}  Be6 {[%clk 0:02:17]} 17. a3 {[%clk 0:02:58]}  a5 {[%clk 0:02:16]} 18. g4 {[%clk 0:02:58]}  exf4 {[%clk 0:02:14]} 19. Nxf4 {[%clk 0:02:58]}  Bc4 {[%clk 0:02:14]} 20. Re1 {[%clk 0:02:57]}  b4 {[%clk 0:02:00]} 21. cxb4 {[%clk 0:02:57]}  axb4 {[%clk 0:02:01]} 22. Rc1 {[%clk 0:02:57]}  Bxb2 {[%clk 0:01:44]} 23. Rc2 {[%clk 0:02:57]}  bxa3 {[%clk 0:01:43]} 24. Be2 {[%clk 0:02:57]}  Bxe2 {[%clk 0:01:40]} 25. Qxe2 {[%clk 0:02:48]}  Qb7 {[%clk 0:01:37]} 26. Qd3 {[%clk 0:02:42]}  a2 {[%clk 0:01:32]} 27. Bd4 {[%clk 0:02:42]}  a1=Q {[%clk 0:01:18]} 28. Rxa1 {[%clk 0:02:41]}  Bxa1 {[%clk 0:01:18]} 29. Bxa1 {[%clk 0:02:41]}  Qb1+ {[%clk 0:01:18]} 0-1

[Event "December 5 Late 2023"]
[Site "https://www.chess.com"]
[Date "2023.12.05"]
[Round "1"]
[White "Janik, Igor"]
[Black "Play, Gilles"]
[Result "1-0"]
[Board "53"]
[TimeControl "180+1"]
[WhiteFideId "1159259"]
[BlackFideId "45130892"]
[WhiteElo "2849"]
[BlackElo "2420"]
[WhiteTeam "POL"]
[BlackTeam "FRA"]
[WhiteClock "0:01:33"]
[BlackClock "0:00:07"]

1. Nf3 {[%clk 0:02:55]}  c5 {[%clk 0:02:57]} 2. e3 {[%clk 0:02:54]}  Nf6 {[%clk 0:02:56]} 3. b3 {[%clk 0:02:53]}  b6 {[%clk 0:02:54]} 4. Bb2 {[%clk 0:02:52]}  Bb7 {[%clk 0:02:55]} 5. Be2 {[%clk 0:02:50]}  e6 {[%clk 0:02:53]} 6. O-O {[%clk 0:02:50]}  Be7 {[%clk 0:02:53]} 7. d4 {[%clk 0:02:46]}  O-O {[%clk 0:02:53]} 8. Nbd2 {[%clk 0:02:44]}  d6 {[%clk 0:02:42]} 9. a4 {[%clk 0:02:43]}  a6 {[%clk 0:02:34]} 10. Nc4 {[%clk 0:02:34]}  b5 {[%clk 0:02:27]} 11. axb5 {[%clk 0:02:31]}  axb5 {[%clk 0:02:27]} 12. Na3 {[%clk 0:02:31]}  b4 {[%clk 0:02:24]} 13. Nc4 {[%clk 0:02:31]}  d5 {[%clk 0:02:04]} 14. Nce5 {[%clk 0:02:26]}  Ne4 {[%clk 0:02:00]} 15. Rxa8 {[%clk 0:02:23]}  Bxa8 {[%clk 0:02:00]} 16. Qa1 {[%clk 0:02:24]}  Bb7 {[%clk 0:01:57]} 17. dxc5 {[%clk 0:02:24]}  Bxc5 {[%clk 0:01:55]} 18. Nd3 {[%clk 0:02:24]}  f6 {[%clk 0:01:42]} 19. Nd4 {[%clk 0:02:10]}  Qc8 {[%clk 0:01:37]} 20. Nxc5 {[%clk 0:02:10]}  Nxc5 {[%clk 0:01:35]} 21. Qa5 {[%clk 0:02:09]}  e5 {[%clk 0:01:31]} 22. Nb5 {[%clk 0:02:07]}  Ne4 {[%clk 0:01:19]} 23. Bd3 {[%clk 0:01:58]}  Nd2 {[%clk 0:01:09]} 24. Rd1 {[%clk 0:01:48]}  Nc6 {[%clk 0:01:04]} 25. Qb6 {[%clk 0:01:47]}  Ne4 {[%clk 0:00:55]} 26. f3 {[%clk 0:01:44]}  Ng5 {[%clk 0:00:41]} 27. Nd6 {[%clk 0:01:43]}  Qd7 {[%clk 0:00:30]} 28. Nxb7 {[%clk 0:01:43]}  e4 {[%clk 0:00:28]} 29. Bc4 {[%clk 0:01:35]}  exf3 {[%clk 0:00:20]} 30. Rxd5 {[%clk 0:01:35]}  f2+ {[%clk 0:00:07]} 31. Kf1 {[%clk 0:01:33]} 1-0

[Event "December 5 Late 2023"]
[Site "https://www.chess.com"]
[Date "2023.12.05"]
[Round "1"]
[White "Gledura, Benjamin"]
[Black "Federzoni, Enzo"]
[Result "1-0"]
[Board "55"]
[TimeControl "180+1"]
[WhiteFideId "712779"]
[BlackFideId "2173301"]
[WhiteElo "2847"]
[BlackElo "2416"]
[WhiteTeam "HUN"]
[BlackTeam "BRA"]
[WhiteClock "0:00:45"]
[BlackClock "0:00:19"]

1. Nf3 {[%clk 0:03:00]}  Nf6 {[%clk 0:02:58]} 2. e3 {[%clk 0:03:01]}  g6 {[%clk 0:02:55]} 3. b3 {[%clk 0:03:01]}  Bg7 {[%clk 0:02:55]} 4. Bb2 {[%clk 0:03:02]}  c5 {[%clk 0:02:55]} 5. c4 {[%clk 0:02:59]}  O-O {[%clk 0:02:55]} 6. g3 {[%clk 0:02:57]}  b6 {[%clk 0:02:54]} 7. Bg2 {[%clk 0:02:58]}  Bb7 {[%clk 0:02:55]} 8. O-O {[%clk 0:02:58]}  d5 {[%clk 0:02:52]} 9. cxd5 {[%clk 0:02:58]}  Qxd5 {[%clk 0:02:51]} 10. Nc3 {[%clk 0:02:57]}  Qd7 {[%clk 0:02:32]} 11. d4 {[%clk 0:02:56]}  cxd4 {[%clk 0:02:30]} 12. Qxd4 {[%clk 0:02:22]}  Qxd4 {[%clk 0:02:25]} 13. Nxd4 {[%clk 0:02:21]}  Bxg2 {[%clk 0:02:26]} 14. Kxg2 {[%clk 0:02:22]}  Nbd7 {[%clk 0:02:26]} 15. Nc6 {[%clk 0:02:18]}  e6 {[%clk 0:02:20]} 16. Rfd1 {[%clk 0:02:17]}  Nc5 {[%clk 0:02:19]} 17. Rac1 {[%clk 0:02:15]}  Rfe8 {[%clk 0:01:58]} 18. b4 {[%clk 0:02:11]}  Nce4 {[%clk 0:01:48]} 19. Nxe4 {[%clk 0:02:04]}  Nxe4 {[%clk 0:01:49]} 20. Bxg7 {[%clk 0:02:04]}  Kxg7 {[%clk 0:01:50]} 21. Rd7 {[%clk 0:01:59]}  Nf6 {[%clk 0:01:39]} 22. Rb7 {[%clk 0:01:46]}  Rec8 {[%clk 0:01:18]} 23. b5 {[%clk 0:01:41]}  a6 {[%clk 0:01:12]} 24. a4 {[%clk 0:01:41]}  axb5 {[%clk 0:01:11]} 25. axb5 {[%clk 0:01:42]}  Nd5 {[%clk 0:01:05]} 26. e4 {[%clk 0:01:34]}  Rc7 {[%clk 0:00:45]} 27. Rxc7 {[%clk 0:01:25]}  Nxc7 {[%clk 0:00:45]} 28. Nd4 {[%clk 0:01:25]}  Ra7 {[%clk 0:00:40]} 29. Rc6 {[%clk 0:01:10]}  Rb7 {[%clk 0:00:40]} 30. f4 {[%clk 0:01:09]}  Kf8 {[%clk 0:00:38]} 31. Kf3 {[%clk 0:01:06]}  Ke8 {[%clk 0:00:37]} 32. Rd6 {[%clk 0:01:01]}  Ke7 {[%clk 0:00:30]} 33. e5 {[%clk 0:00:58]}  Ne8 {[%clk 0:00:20]} 34. Nc6+ {[%clk 0:00:58]}  Kf8 {[%clk 0:00:20]} 35. Rd8 {[%clk 0:00:58]}  Rc7 {[%clk 0:00:17]} 36. g4 {[%clk 0:00:56]}  Rb7 {[%clk 0:00:18]} 37. h4 {[%clk 0:00:56]}  f6 {[%clk 0:00:18]} 38. g5 {[%clk 0:00:51]}  fxg5 {[%clk 0:00:17]} 39. hxg5 {[%clk 0:00:51]}  Kf7 {[%clk 0:00:17]} 40. Ke4 {[%clk 0:00:48]}  Ng7 {[%clk 0:00:17]} 41. Rh8 {[%clk 0:00:46]}  Rc7 {[%clk 0:00:17]} 42. Rxh7 {[%clk 0:00:45]}  Kg8 {[%clk 0:00:18]} 43. Rh6 {[%clk 0:00:45]}  Kf7 {[%clk 0:00:17]} 44. Rh8 {[%clk 0:00:46]}  Nf5 {[%clk 0:00:17]} 45. Nd8+ {[%clk 0:00:43]}  Kg7 {[%clk 0:00:17]} 46. Nxe6+ {[%clk 0:00:43]}  Kxh8 {[%clk 0:00:18]} 47. Nxc7 {[%clk 0:00:44]}  Kg7 {[%clk 0:00:18]} 48. Nd5 {[%clk 0:00:44]}  Kf7 {[%clk 0:00:18]} 49. Nxb6 {[%clk 0:00:45]}  Ke6 {[%clk 0:00:19]} 50. Nc4 {[%clk 0:00:45]} 1-0